lending/lending_fUSD_20260124
["ID","MTS","AMOUNT","RATE_DAILY","PERIOD"]
[403190735,1769260246365,-500.0,0.00017973,2]
[403190736,1769260246374,-500.0,0.00017973,2]
[403190737,1769260246383,-500.0,0.00017973,2]
[403190738,1769260246393,-500.0,0.00017973,2]
[403190739,1769260246403,-500.0,0.00017973,2]
[403190740,1769260246412,-573.18204786,0.00017973,2]
[403190741,1769260246421,-208.11665623,0.00017973,2]
[403190742,1769260246430,-500.0,0.00017973,2]
[403190743,1769260246441,-500.0,0.00017973,2]
[403190744,1769260246451,-500.0,0.00017973,2]
[403190745,1769260246464,-500.0,0.00017973,2]
[403190746,1769260246473,-500.0,0.00017973,2]
[403190747,1769260246483,-160.95253726,0.00017973,2]
[403190748,1769260246492,-160.03318119,0.00017973,2]
[403190749,1769260246502,-160.05036115,0.00017973,2]
[403190750,1769260246511,-159.93585942,0.00017973,2]
[403190751,1769260246520,-160.04994992,0.00017973,2]
[403190752,1769260246530,-161.29695591,0.00017973,2]
[403190753,1769260246540,-160.30101054,0.00017973,2]
[403190754,1769260246549,-335.93123339,0.00017973,2]
[403190755,1769260246558,-160.0507877,0.00017973,2]
[403190756,1769260246567,-180.05440168,0.00017973,2]
[403190757,1769260246576,-500.0,0.00017973,2]
[403190758,1769260246586,-512.1744801,0.00017973,2]
[403190759,1769260246595,-160.04998238,0.00017973,2]
[403190760,1769260246605,-500.0,0.00017973,2]
[403190761,1769260246614,-500.0,0.00017973,2]
[403190762,1769260246623,-160.05242782,0.00017973,2]
[403190763,1769260246632,-500.0,0.00017973,2]
[403190764,1769260246642,-500.0,0.00017973,2]
[403190765,1769260246651,-500.0,0.00017973,2]
[403190766,1769260246660,-500.0,0.00017973,2]
[403190767,1769260246670,-500.0,0.00017973,2]
[403190768,1769260246679,-500.0,0.00017973,2]
[403190769,1769260246688,-500.0,0.00017973,2]
[403190770,1769260246698,-161.20666181,0.00017973,2]
[403190771,1769260246707,-500.0,0.00017973,2]
[403190772,1769260246717,-500.0,0.00017973,2]
[403190773,1769260246726,-333.14308792,0.00017973,2]
[403190774,1769260246735,-160.03828545,0.00017973,2]
[403190775,1769260246744,-158.06916035,0.00017973,2]
[403190776,1769260246753,-160.05079201,0.00017973,2]
[403190777,1769260246762,-500.0,0.00017973,2]
[403190778,1769260246771,-500.0,0.00017973,2]
[403190779,1769260246780,-500.0,0.00017973,2]
[403190780,1769260246789,-500.0,0.00017973,2]
[403190781,1769260246798,-500.0,0.00017973,2]
[403190782,1769260246807,-150.0,0.00017973,2]
[403190783,1769260246816,-500.0,0.00017973,2]
[403190784,1769260246825,-160.04899722,0.00017973,2]
[403190785,1769260246834,-508.83270828,0.00017973,2]
[403190786,1769260246843,-164.56853003,0.00017973,2]
[403190787,1769260246852,-284.08136107,0.00017973,2]
[403190788,1769260246862,-308.89625283,0.00017973,2]
[403190789,1769260246871,-161.24700646,0.00017973,2]
[403190790,1769260246882,-548.15607658,0.00017973,2]
[403190791,1769260246892,-500.0,0.00017973,2]
[403190792,1769260246901,-169.51216753,0.00017973,2]
[403190793,1769260246911,-500.0,0.00017973,2]
[403190794,1769260246920,-500.0,0.00017973,2]
[403190795,1769260246929,-500.0,0.00017973,2]
[403190796,1769260246938,-500.0,0.00017973,2]
[403190797,1769260246947,-165.72236604,0.00017973,2]
[403190798,1769260246956,-500.0,0.00017973,2]
[403190799,1769260246969,-500.0,0.00017973,2]
[403190800,1769260246978,-500.0,0.00017973,2]
[403190801,1769260246987,-521.52144255,0.00017973,2]
[403190802,1769260246997,-150.87644931,0.00017973,2]
[403190803,1769260247006,-500.0,0.00017973,2]
[403190804,1769260247016,-500.0,0.00017973,2]
[403190805,1769260247025,-161.7441045,0.00017973,2]
[403190806,1769260247034,-500.0,0.00017973,2]
[403190807,1769260247043,-300.0,0.00017973,2]
[403190808,1769260247054,-150.0,0.00017973,2]
[403190809,1769260247063,-500.0,0.00017973,2]
[403190810,1769260247074,-157.31967869,0.00017973,2]
[403190811,1769260247083,-160.05160425,0.00017973,2]
[403190812,1769260247092,-500.0,0.00017973,2]
[403190813,1769260247101,-500.0,0.00017973,2]
[403190814,1769260247110,-162.47485834,0.00017973,2]
[403190815,1769260247119,-500.0,0.00017973,2]
[403190816,1769260247127,-500.0,0.00017973,2]
[403190817,1769260247137,-161.91357387,0.00017973,2]
[403190818,1769260247146,-167.78129088,0.00017973,2]
[403190819,1769260247155,-500.0,0.00017973,2]
[403190820,1769260247164,-500.0,0.00017973,2]
[403190821,1769260247173,-500.0,0.00017973,2]
[403190822,1769260247182,-208.57012707,0.00017973,2]
[403190823,1769260247191,-485.5720463,0.00017973,2]
[403190824,1769260247200,-161.03754612,0.00017973,2]
[403190825,1769260247209,-500.0,0.00017973,2]
[403190826,1769260247217,-511.74783648,0.00017973,2]
[403190827,1769260247226,-500.0,0.00017973,2]
[403190828,1769260247236,-500.0,0.00017973,2]
[403190829,1769260247245,-500.0,0.00017973,2]
[403190830,1769260247254,-220.12,0.00017973,2]
[403190831,1769260247263,-5800.0,0.00017975,2]
[403190832,1769260247271,-500.0,0.00017982,2]
[403190833,1769260247280,-5800.0,0.00017983,2]
[403190834,1769260247289,-150.0,0.0001799,2]
[403190835,1769260247298,-857.10560289,0.0001799,2]
[403190836,1769260247307,-857.10560289,0.0001799,2]
[403190837,1769260247316,-500.0,0.00017991,2]
[403190838,1769260247325,-5800.0,0.00017992,2]
[403190839,1769260247334,-169.58027881,0.00017996,2]
[403190840,1769260247343,-152.734551,0.00017997,2]
[403190841,1769260247352,-186.75,0.00017997,2]
[403190842,1769260247361,-151.0,0.00017997,2]
[403190843,1769260247370,-249.48172896,0.00017999,2]
[403190844,1769260247378,-155.0,0.00017999,2]
[403190845,1769260247388,-300.0,0.00017999,2]
[403190846,1769260247398,-500.0,0.00017999,2]
[403190847,1769260247407,-500.0,0.00017999,2]
[403190848,1769260247415,-500.0,0.00017999,2]
[403190849,1769260247425,-500.0,0.00017999,2]
[403190850,1769260247435,-500.0,0.00017999,2]
[403190851,1769260247444,-500.0,0.00017999,2]
[403190852,1769260247454,-500.0,0.00017999,2]
[403190853,1769260247467,-500.0,0.00017999,2]
[403190854,1769260247477,-500.0,0.00017999,2]
[403190855,1769260247486,-500.0,0.00017999,2]
[403190856,1769260247495,-500.0,0.00017999,2]
[403190857,1769260247504,-500.0,0.00017999,2]
[403190858,1769260247513,-161.30786279,0.00017999,2]
[403190859,1769260247522,-300.0,0.00017999,2]
[403190860,1769260247531,-500.0,0.00017999,2]
[403190861,1769260247540,-311.60217601,0.00017999,2]
[403190862,1769260247550,-300.0,0.00017999,2]
[403190863,1769260247559,-300.0,0.00017999,2]
[403190864,1769260247568,-413.71370939,0.00017999,2]
[403190865,1769260247577,-300.0,0.00017999,2]
[403190866,1769260247586,-300.0,0.00017999,2]
[403190867,1769260247595,-5692866.44254431,0.00018,2]
[403190868,1769260249647,-1.7e-07,0.00018,2]
[403190869,1769260251110,-133.84068271,0.00011984,2]
[403190870,1769260251123,-1621.31058871,0.00011984,2]
[403190871,1769260251203,-196.14859025,0.00011984,2]
[403190872,1769260251267,-5002.02263403,0.00011984,2]
[403190873,1769260251279,-539.88083563,0.00011984,2]
[403190874,1769260251298,-64466.69186867,0.00011984,2]
[403190875,1769260251307,-192.58230263,0.00013698,2]
[403190876,1769260251316,-151.0,0.00013699,2]
[403190877,1769260251325,-1619.19086882,0.000179,2]
[403190878,1769260251334,-627010.45054438,0.00018,2]
[403190879,1769260251345,-879.4170014,0.00018,2]
[403190886,1769260321769,6718.3386,0.00011984,2]
[403190887,1769260325014,237.0302,0.00011984,2]
[403190889,1769260344045,500.0,0.000176,30]
[403190890,1769260344543,500.0,0.000176,30]
[403190891,1769260345034,500.0,0.000176,30]
[403190892,1769260345711,500.0,0.000176,30]
[403190893,1769260346196,500.0,0.00013,2]
[403190894,1769260346679,500.0,0.00013,2]
[403190895,1769260347210,500.0,0.00013,2]
[403190896,1769260347923,628.50849013,0.00013,2]
[403190897,1769260348962,500.0,0.000119,2]
[403190899,1769260369596,22371.49150987,0.00011984,2]
[403190901,1769260382571,-249.03753343,0.00011984,2]
[403190902,1769260386389,-208.67119819,0.00011984,2]
[403190903,1769260388163,10000.01,7.945e-05,2]
[403190904,1769260388185,908.956836,7.945e-05,2]
[403190905,1769260388786,-185.37093425,0.00011984,2]
[403190906,1769260392516,-241.25996272,0.00011984,2]
[403190909,1769260397106,-167.63302564,0.00011984,2]
[403190910,1769260399022,-185.04025969,0.00011984,2]
[403190911,1769260402257,-164.89558838,0.00011984,2]
[403190912,1769260403890,-206.04530438,0.00011984,2]
[403190913,1769260406088,-305.20281656,0.00011984,2]
[403190914,1769260408852,-175.25151122,0.00011984,2]
[403190915,1769260410831,-235.40616196,0.00011984,2]
[403190916,1769260412657,-189.36428936,0.00011984,2]
[403190917,1769260415615,-165.51566,0.00011984,2]
[403190919,1769260418952,-242.71801423,0.00011984,2]
[403190920,1769260422297,-3000.0,0.00011984,2]
[403190921,1769260425836,-204.35792503,0.00011984,2]
[403190922,1769260427375,-174.29985516,0.00011984,2]
[403190923,1769260430150,-162.31083469,0.00011984,2]
[403190924,1769260432857,-152.90282489,0.00011984,2]
[403190925,1769260435803,-260.85016,0.00011984,2]
[403190926,1769260437805,-297.23533721,0.00011984,2]
[403190927,1769260439859,-156.41500086,0.00011984,2]
[403190929,1769260441256,-266.94809082,0.00011984,2]
[403190930,1769260443203,-227.78422536,0.00011984,2]
[403190931,1769260445223,-450.0,0.00011984,2]
[403190932,1769260447268,-215.67345871,0.00011984,2]
[403190933,1769260448774,1119.26215639,0.00011983,3]
[403190934,1769260450312,-274.61431748,0.00011984,2]
[403190935,1769260453817,-252.143357,0.00011984,2]
[403190936,1769260458844,-309.71222381,0.00011984,2]
[403190937,1769260462904,-247.856643,0.00011984,2]
[403190939,1769260464503,-331.82655358,0.00011984,2]
[403190940,1769260466502,-378.00494286,0.00011984,2]
[403190942,1769260478834,164.89558838,0.00011983,2]
[403190943,1769260478871,199.03882047,0.00011983,2]
[403190944,1769260478907,158.56715665,0.00011983,2]
[403190945,1769260478944,284.56330351,0.00011983,2]
[403190946,1769260478985,357.70073568,0.00011983,2]
[403190947,1769260479032,377.07875091,0.00011983,2]
[403190948,1769260479073,500.0,0.00011983,2]
[403190949,1769260479187,500.0,0.00011983,2]
[403190950,1769260479242,304.45511273,0.00011983,2]
[403190952,1769260499883,177.45787411,0.00011884,2]
[403190953,1769260501709,300.0,0.00011983,2]
[403190954,1769260501788,1200.0,0.00011983,2]
[403190955,1769260502495,150.0,0.00011983,2]
[403190960,1769260561349,300.0,0.00011983,2]
[403190967,1769260605667,-227.80415376,0.00011984,2]
[403190968,1769260621378,300.0,0.00011983,2]
[403190970,1769260641564,1333.76177545,0.00011884,2]
[403190971,1769260681345,300.0,0.00011983,2]
[403190972,1769260695516,-155.82606753,0.00011984,2]
[403190974,1769260697549,-429.89377745,0.00011984,2]
[403190975,1769260698950,-211.35592782,0.00011984,2]
[403190979,1769260741432,300.0,0.00011983,2]
[403190983,1769260800337,-251.01652615,0.00011984,2]
[403190984,1769260801238,300.0,0.00011983,2]
[403190985,1769260801274,1200.0,0.00011983,2]
[403190986,1769260802530,-217.69248067,0.00011984,2]
[403191029,1769260826328,177.45787411,0.00011884,2]
[403191030,1769260830285,-173.65684073,0.00011984,2]
[403191031,1769260832636,-261.67129629,0.00011984,2]
[403191032,1769260835434,-320.1522707,0.00011984,2]
[403191033,1769260839176,-242.95908012,0.00011984,2]
[403191034,1769260840740,-165.51566,0.00011984,2]
[403191035,1769260843358,-225.66994004,0.00011984,2]
[403191036,1769260845478,-165.51566,0.00011984,2]
[403191037,1769260847583,-188.34578917,0.00011984,2]
[403191038,1769260849070,-473.66195779,0.00011984,2]
[403191040,1769260875318,-224.63899196,0.00011984,2]
[403191042,1769260878765,-653.58755608,0.00011984,2]
[403191043,1769260881939,-406.75450784,0.00011984,2]
[403191044,1769260883552,-165.51566,0.00011984,2]
[403191045,1769260886089,-240.41519322,0.00011984,2]
[403191049,1769260888547,-297.33831714,0.00011984,2]
[403191053,1769260889627,-280.18204348,0.00011984,2]
[403191054,1769260892581,206.076172,0.00011744,2]
[403191055,1769260892605,2133.751828,0.00011744,2]
[403191056,1769260892658,168.542,0.00011744,2]
[403191057,1769260892890,-322.08885429,0.00011984,2]
[403191058,1769260894365,-225.63949057,0.00011984,2]
[403191059,1769260899142,-186.5865895,0.00011984,2]
[403191060,1769260900886,-255.88840929,0.00011984,2]
[403191061,1769260902289,-177.57814651,0.00011923,2]
[403191062,1769260902967,-291.13086049,0.00011923,2]
[403191063,1769260903240,-227.80415376,0.00011884,2]
[403191064,1769260903779,-1565.65355583,0.00011984,2]
[403191065,1769260906027,-10000.01,0.00011984,2]
[403191066,1769260906160,-10000.01,0.00011984,2]
[403191067,1769260906303,-10000.01,0.00011984,2]
[403191068,1769260906445,-10000.01,0.00011984,2]
[403191069,1769260906587,-10000.01,0.00011984,2]
[403191070,1769260906705,-10000.01,0.00011984,2]
[403191071,1769260920867,-410.43469677,0.00011984,2]
[403191072,1769260921358,300.0,0.00011983,2]
[403191073,1769260922381,-427.16872247,0.00011984,2]
[403191074,1769260924460,-222.84735836,0.00011984,2]
[403191075,1769260927614,-189.38748428,0.00011984,2]
[403191076,1769260929761,-220.72740043,0.00011984,2]
[403191078,1769260968392,151.0,0.00011984,2]
[403191079,1769260969508,151.0,0.00011984,2]
[403191080,1769260970147,151.0,0.00011984,2]
[403191081,1769260970753,295.30065003,0.00011984,2]
[403191082,1769260980356,-180.14659574,0.00011984,2]
[403191083,1769260996467,-390.8514742,0.00011984,2]
[403191084,1769260998007,-169.88456738,0.00011984,2]
[403191085,1769260999417,-356.68783065,0.00011984,2]
[403191086,1769261009033,-385.83173004,0.00011984,2]
[403191087,1769261010962,-202.72394855,0.00011984,2]
[403191088,1769261012976,-162.54389024,0.00011984,2]
[403191089,1769261016069,-300.0,0.00011984,2]
[403191090,1769261018551,-185.90449884,0.00011984,2]
[403191091,1769261029812,601.38059202,0.00011884,2]
[403191093,1769261056920,2012.6968,0.00011884,2]
[403191094,1769261061965,6337.63195795,0.00011884,2]
[403191095,1769261061990,1307.67981067,0.00011884,2]
[403191096,1769261101532,300.0,0.00011983,2]
[403191097,1769261101574,1200.0,0.00011983,2]
[403191099,1769261123135,1056.8328,0.00011884,2]
[403191100,1769261129354,791.8372,0.00011884,2]
[403191101,1769261143076,5343.66018933,0.00011884,2]
[403191102,1769261143112,10000.01,0.00011884,2]
[403191103,1769261143147,210.07049685,0.00011884,2]
[403191104,1769261160854,150.27952116,0.00011884,2]
[403191105,1769261170758,400.92039468,0.00011884,2]
[403191107,1769261221326,300.0,0.00011983,2]
[403191108,1769261225954,263.95512563,0.00011983,2]
[403191109,1769261235134,500.0,0.000176,30]
[403191110,1769261235196,500.0,0.000176,30]
[403191111,1769261235538,500.0,0.000176,30]
[403191112,1769261238639,500.0,0.000176,30]
[403191113,1769261239119,500.0,0.000176,30]
[403191114,1769261239956,500.0,0.000176,30]
[403191115,1769261240361,500.0,0.000176,30]
[403191116,1769261244606,500.0,0.000176,30]
[403191117,1769261245021,500.0,0.000176,30]
[403191118,1769261246173,250.39051498,0.00011983,2]
[403191119,1769261246311,500.0,0.000176,30]
[403191120,1769261246762,500.0,0.000176,30]
[403191121,1769261248148,548.13873761,0.000176,30]
[403191122,1769261249060,500.0,0.000176,30]
[403191123,1769261249296,500.0,0.000176,30]
[403191125,1769261255271,500.0,0.00011983,2]
[403191126,1769261255326,413.11857891,0.00011983,2]
[403191129,1769261261111,7721.34586464,0.00011983,2]
[403191130,1769261261134,10000.01,0.00011983,2]
[403191148,1769261401412,1200.0,0.00011883,2]
[403191154,1769261425913,150.27952116,0.00011784,2]
[403191160,1769261432308,175.27336048,0.00011883,2]
[403191161,1769261432351,199.19431245,0.00011883,2]
[403191162,1769261432737,184.76858795,0.00011883,2]
[403191163,1769261432776,639.18300524,0.00011883,2]
[403191164,1769261433044,-977.37552332,0.00011884,2]
[403191165,1769261433055,-131920.94371361,0.00011884,2]
[403191166,1769261433066,-666.0,0.00011884,2]
[403191167,1769261433078,-2756.14411083,0.00011884,2]
[403191168,1769261433089,-853.67060839,0.00011884,2]
[403191169,1769261433100,-8167.85680033,0.00011884,2]
[403191170,1769261433126,-1091.33504491,0.00011884,2]
[403191171,1769261433167,-1851.0,0.00011884,2]
[403191172,1769261433189,-4562.01934014,0.00011884,2]
[403191173,1769261433201,-769.85588917,0.00011884,2]
[403191186,1769261437933,-628.73244732,0.00011884,2]
[403191187,1769261437945,-1817.01184,0.00011884,2]
[403191190,1769261437990,-392.85782781,0.00011884,2]
[403191192,1769261438048,-4317.53069797,0.00011884,2]
[403191193,1769261438059,-26706.59313829,0.00011884,2]
[403191194,1769261438071,-8568.3,0.00011884,2]
[403191231,1769261439940,-5173.63758016,0.00011884,2]
[403191232,1769261439951,-459.94361421,0.00011884,2]
[403191233,1769261440061,-1933.16569392,0.00011884,2]
[403191234,1769261440073,-722.74908185,0.00011884,2]
[403191235,1769261440084,-795663.27704777,0.00011884,2]
[403191236,1769261440093,-230.11088144,0.00011884,2]
[403191238,1769261440103,-247.0,0.00011884,2]
[403191239,1769261440112,-250.0,0.00011933,2]
[403191240,1769261440121,-150.0,0.00011954,2]
[403191241,1769261440130,-250.0,0.00011963,2]
[403191242,1769261440139,-186.0,0.00011982,2]
[403191243,1769261440148,-133334.17570426,0.00011983,2]
[403191244,1769261440158,-2423.1177595,0.00011983,2]
[403191245,1769261440167,-200.0,0.00011984,2]
[403191246,1769261440176,-192.58230263,0.00011984,2]
[403191247,1769261440185,-151.0,0.00011984,2]
[403191248,1769261440194,-1000.0,0.00012084,2]
[403191249,1769261440203,-200.0,0.00012104,2]
[403191250,1769261440212,-200.0,0.00012225,2]
[403191251,1769261440224,-200.0,0.00012247,2]
[403191252,1769261440233,-200.0,0.00012347,2]
[403191253,1769261440243,-200.0,0.00012471,2]
[403191254,1769261440252,-150.0,0.000125,2]
[403191255,1769261440262,-15553.74068616,0.00012552,2]
[403191256,1769261440271,-1841.2,0.00012721,2]
[403191257,1769261440280,-753.0,0.00012942,2]
[403191258,1769261440290,-1302.0,0.00012968,2]
[403191259,1769261440299,-500.0,0.00013,2]
[403191260,1769261440308,-500.0,0.00013,2]
[403191261,1769261440318,-500.0,0.00013,2]
[403191262,1769261440327,-500.0,0.00013,2]
[403191263,1769261440336,-500.0,0.00013,2]
[403191264,1769261440345,-500.0,0.00013,2]
[403191265,1769261440354,-3824.42660411,0.0001305,2]
[403191266,1769261440363,-1680.0,0.00013071,2]
[403191267,1769261440372,-300.0,0.00013072,2]
[403191268,1769261440381,-250.0,0.00013072,2]
[403191270,1769261440390,-186.55,0.00013088,2]
[403191272,1769261440399,-15389.11,0.00013182,2]
[403191274,1769261440408,-2367.73,0.00013182,2]
[403191276,1769261440418,-980.82,0.00013182,2]
[403191278,1769261440427,-500.0,0.00013182,2]
[403191280,1769261440436,-857.10560289,0.00013211,2]
[403191282,1769261440445,-15553.74068616,0.00013221,2]
[403191284,1769261440455,-150.27952116,0.00013313,2]
[403191286,1769261440463,-1600.0,0.00013315,2]
[403191288,1769261440473,-150.0,0.000135,2]
[403191290,1769261440482,-151055.5315689,0.00013555,2]
[403191292,1769261440491,-500.0,0.00013555,2]
[403191294,1769261440500,-2423.1177595,0.00013591,2]
[403191296,1769261440509,-322.6107,0.00013672,2]
[403191298,1769261440518,-174.61919141,0.00013672,2]
[403191300,1769261440527,-721.12765535,0.00013672,2]
[403191302,1769261440536,-500.0,0.00013672,2]
[403191303,1769261440545,-500.0,0.00013672,2]
[403191305,1769261440554,-500.0,0.00013672,2]
[403191306,1769261440563,-500.0,0.00013672,2]
[403191307,1769261440575,-500.0,0.00013672,2]
[403191308,1769261440587,-500.0,0.00013672,2]
[403191309,1769261440597,-500.0,0.00013672,2]
[403191310,1769261440607,-500.0,0.00013672,2]
[403191311,1769261440616,-250.0,0.00013672,2]
[403191312,1769261440625,-500.0,0.00013672,2]
[403191313,1769261440634,-250.0,0.00013672,2]
[403191314,1769261440643,-500.0,0.00013672,2]
[403191315,1769261440651,-301.96560903,0.00013672,2]
[403191316,1769261440660,-500.0,0.00013672,2]
[403191317,1769261440670,-500.0,0.00013672,2]
[403191318,1769261440679,-289.41934896,0.00013672,2]
[403191319,1769261440688,-854.2589148,0.00013672,2]
[403191320,1769261440697,-578.20924308,0.00013672,2]
[403191321,1769261440707,-500.0,0.00013672,2]
[403191322,1769261440716,-500.0,0.00013672,2]
[403191323,1769261440725,-500.0,0.00013672,2]
[403191324,1769261440734,-500.0,0.00013672,2]
[403191325,1769261440744,-500.0,0.00013672,2]
[403191326,1769261440753,-500.0,0.00013672,2]
[403191327,1769261440762,-500.0,0.00013672,2]
[403191328,1769261440772,-500.0,0.00013672,2]
[403191329,1769261440781,-151.0,0.00013672,2]
[403191330,1769261440790,-500.0,0.00013672,2]
[403191331,1769261440800,-151.0,0.00013672,2]
[403191332,1769261440810,-500.0,0.00013672,2]
[403191333,1769261440820,-151.0,0.00013672,2]
[403191334,1769261440831,-500.0,0.00013672,2]
[403191335,1769261440841,-151.0,0.00013672,2]
[403191336,1769261440851,-151.0,0.00013672,2]
[403191337,1769261440860,-151.0,0.00013672,2]
[403191338,1769261440869,-151.0,0.00013672,2]
[403191339,1769261440878,-151.0,0.00013672,2]
[403191340,1769261440887,-151.0,0.00013672,2]
[403191341,1769261440897,-151.0,0.00013672,2]
[403191342,1769261440906,-151.0,0.00013672,2]
[403191343,1769261440917,-1502.0,0.00013689,2]
[403191344,1769261440927,-500.0,0.00013698,2]
[403191345,1769261440937,-500.0,0.00013698,2]
[403191346,1769261440946,-500.0,0.00013698,2]
[403191347,1769261440956,-298.21786279,0.00013698,2]
[403191348,1769261440965,-500.0,0.00013698,2]
[403191349,1769261440975,-311.60217601,0.00013698,2]
[403191350,1769261440984,-500.0,0.00013698,2]
[403191351,1769261440993,-500.0,0.00013698,2]
[403191352,1769261441011,-500.0,0.00013698,2]
[403191353,1769261441020,-500.0,0.00013698,2]
[403191354,1769261441031,-500.0,0.00013698,2]
[403191355,1769261441040,-500.0,0.00013698,2]
[403191356,1769261441050,-500.0,0.00013698,2]
[403191357,1769261441061,-500.0,0.00013698,2]
[403191358,1769261441071,-500.0,0.00013698,2]
[403191359,1769261441081,-513.68541825,0.00013698,2]
[403191360,1769261441090,-500.0,0.00013698,2]
[403191361,1769261441100,-500.0,0.00013698,2]
[403191362,1769261441109,-500.0,0.00013698,2]
[403191363,1769261441118,-174.88782971,0.00013698,2]
[403191364,1769261441127,-171.84070592,0.00013699,3]
[403191365,1769261441135,-150.07696773,0.00013699,3]
[403191366,1769261441145,-2065.26,0.00013699,2]
[403191367,1769261441154,-2024.19,0.000137,2]
[403191368,1769261441163,-2024.19,0.000137,2]
[403191369,1769261441173,-360.04,0.00013704,2]
[403191370,1769261441183,-383.0,0.00013717,2]
[403191371,1769261441192,-1594.0,0.00013744,2]
[403191372,1769261441202,-329.06560896,0.00013808,2]
[403191373,1769261441212,-453.0,0.00013829,2]
[403191374,1769261441221,-15553.74068616,0.00013889,2]
[403191375,1769261441231,-3945.06,0.00013908,2]
[403191376,1769261441241,-157.07,0.00013973,2]
[403191377,1769261441251,-157.07,0.00013973,2]
[403191378,1769261441261,-157.07,0.00013973,2]
[403191379,1769261441270,-157.07,0.00013973,2]
[403191380,1769261441280,-157.07,0.00013973,2]
[403191381,1769261441291,-157.07,0.00013973,2]
[403191382,1769261441300,-157.07,0.00013973,2]
[403191383,1769261441310,-157.07,0.00013973,2]
[403191384,1769261441320,-157.07,0.00013973,2]
[403191385,1769261441329,-157.09,0.00013973,2]
[403191386,1769261441338,-356.0,0.00014194,2]
[403191387,1769261441347,-181.08010149,0.0001422,2]
[403191388,1769261441356,-473.51728025,0.0001422,2]
[403191389,1769261441365,-880.0,0.00014223,2]
[403191390,1769261441375,-1038.0,0.00014251,2]
[403191391,1769261441384,-1605.0,0.00014279,2]
[403191392,1769261441393,-1174.0,0.00014308,2]
[403191393,1769261441402,-571.0,0.00014336,2]
[403191394,1769261441411,-2351.0,0.00014378,2]
[403191395,1769261441420,-2065.26,0.00014384,2]
[403191396,1769261441430,-3730.39828202,0.0001439,2]
[403191397,1769261441439,-329.06560895,0.0001449,2]
[403191398,1769261441448,-6781.06,0.00014504,2]
[403191399,1769261441458,-9999.99,0.00014504,2]
[403191400,1769261441467,-5476.85,0.00014504,2]
[403191401,1769261441479,-150.99,0.00014504,2]
[403191402,1769261441491,-463.76,0.00014504,2]
[403191403,1769261441500,-7186.37,0.00014504,2]
[403191404,1769261441509,-336.01,0.00014504,2]
[403191405,1769261441517,-299.99,0.00014504,2]
[403191406,1769261441526,-2904.77,0.00014504,2]
[403191407,1769261441535,-3561.06,0.00014504,2]
[403191408,1769261441544,-9999.99,0.00014504,2]
[403191409,1769261441553,-2976.33,0.00014504,2]
[403191410,1769261441561,-3272.88,0.00014504,2]
[403191411,1769261441570,-157.07,0.00014521,2]
[403191412,1769261441579,-157.07,0.00014521,2]
[403191413,1769261441587,-157.07,0.00014521,2]
[403191414,1769261441596,-157.07,0.00014521,2]
[403191415,1769261441604,-157.07,0.00014521,2]
[403191416,1769261441613,-157.07,0.00014521,2]
[403191417,1769261441622,-157.07,0.00014521,2]
[403191418,1769261441630,-157.07,0.00014521,2]
[403191419,1769261441639,-157.07,0.00014521,2]
[403191420,1769261441648,-157.09,0.00014521,2]
[403191421,1769261441657,-15553.74068616,0.00014558,2]
[403191422,1769261441666,-233.57,0.00014723,2]